bitfinex-derivatives/quotes_ETHF0:USTF0_20230403
["timestamp","ask_amount","ask_price","bid_price","bid_amount"]
[1680551910218,1.41771161,1819.1,1818.8,1.089]
[1680551910419,0.56729456,1819.1,1818.8,1.089]
[1680551910727,0.56729456,1819.1,1818.9,1.099]
[1680551910923,0.56729456,1819.2,1818.9,1.099]
[1680551911318,1.41771161,1819.2,1818.9,1.099]
[1680551911519,0.56729456,1819.1,1818.9,1.099]
[1680551912223,1.41771161,1819.2,1819.0,1.099]
[1680551912919,0.56729456,1819.2,1819.0,1.099]
[1680551913520,0.56729456,1819.1,1819.0,1.099]
[1680551914028,1.41771161,1819.2,1819.0,1.099]
[1680551914326,0.56729456,1819.2,1819.0,1.099]
[1680551919429,1.41771161,1819.2,1819.0,1.099]
[1680551922833,0.56729456,1819.2,1819.0,1.099]
[1680551923633,0.56729456,1819.1,1819.0,1.099]
[1680551924229,0.56729456,1819.1,1818.9,1.099]
[1680551924424,0.56729456,1819.1,1819.0,1.099]
[1680551926333,0.56729456,1819.1,1818.9,1.09]
[1680551926530,3.2078,1819.0,1818.9,1.09]
[1680551928229,3.77509456,1819.0,1818.9,1.09]
[1680551928431,3.77509456,1819.0,1818.7,2.52776183]
[1680551928630,3.77509456,1819.0,1818.7,1.09]
[1680551929736,3.77509456,1819.0,1818.7,2.52776183]
[1680551929931,3.77509456,1819.0,1818.7,5.73556183]
[1680551930230,3.77509456,1819.0,1818.9,1.097]
[1680551930632,3.2078,1819.0,1818.6,2.43776183]
[1680551930837,0.56729456,1818.9,1818.5,1.99093042]
[1680551931138,3.2078,1818.8,1818.5,1.99093042]
[1680551931336,3.2078,1818.8,1818.7,1.099]
[1680551932034,3.2078,1818.8,1818.6,1.089]
[1680551932536,4.87109456,1818.8,1818.5,0.55316859]
[1680551932731,4.87109456,1818.8,1818.4,2.53676183]
[1680551933936,4.87109456,1818.8,1818.4,1.099]
[1680551933937,3.2078,1818.6,1818.4,1.099]
[1680551935738,4.87109456,1818.8,1818.4,1.099]
[1680551941937,3.2078,1818.6,1818.4,1.099]
[1680551942142,3.2078,1818.6,1818.4,1.097]
[1680551944449,3.20371089,1818.6,1818.4,1.097]
[1680551947346,4.3038,1818.8,1818.4,1.097]
[1680551947650,4.3038,1818.8,1818.4,1.0891008]
[1680551947844,4.3038,1818.8,1818.4,2.0891008]
[1680551950051,3.2078,1818.6,1818.4,2.0891008]
[1680551951861,3.2078,1818.6,1818.4,1.0891008]
[1680551952761,0.05108546,1818.5,1818.4,1.0891008]
[1680551959872,3.2078,1818.6,1818.4,1.0891008]
[1680551960064,3.2078,1818.6,1818.5,1.094]
[1680551960671,3.2078,1818.8,1818.5,2.094]
[1680551960878,3.2078,1818.8,1818.7,1.097]
[1680551961969,3.2078,1819.0,1818.7,1.097]
[1680551962277,3.2078,1819.0,1818.8,1.099]
[1680551962568,2.18011086,1819.1,1818.8,1.099]
[1680551963373,0.56729456,1819.1,1819.0,1.099]
[1680551963570,3.77509456,1819.2,1819.0,1.38075239]
[1680551964670,3.2078,1819.2,1819.0,1.38075239]
[1680551964879,3.2078,1819.2,1819.1,1.099]
[1680551968770,0.56729456,1819.3,1819.1,1.099]
[1680551968977,0.56729456,1819.3,1819.2,1.097]
[1680551969371,4.62551161,1819.4,1819.2,1.097]
[1680551969680,0.56729456,1819.3,1819.2,1.097]
[1680551971284,4.62551161,1819.4,1819.2,1.097]
[1680551971485,0.56729456,1819.3,1819.1,0.28112482]
[1680551971685,3.2078,1819.2,1819.1,0.28112482]
[1680551971982,4.87409456,1819.2,1819.1,0.28112482]
[1680551972381,4.87409456,1819.2,1818.8,1.09]
[1680551972889,4.87409456,1819.2,1818.7,1.0]
[1680551972890,3.77509456,1819.2,1819.0,1.099]
[1680551973183,3.2078,1819.2,1819.0,1.099]
[1680551973790,0.56729456,1819.3,1819.0,1.099]
[1680551974290,0.56729456,1819.3,1819.0,4.3068]
[1680551974490,3.77509456,1819.4,1819.2,1.099]
[1680551974676,3.2078,1819.4,1819.2,1.099]
[1680551975583,3.77509456,1819.4,1819.2,1.099]
[1680551976275,3.2078,1819.4,1819.2,1.099]
[1680551981297,3.77509456,1819.4,1819.2,1.099]
[1680551983894,3.77509456,1819.4,1819.3,0.28044382]
[1680551984296,4.87409456,1819.4,1819.3,0.28044382]
[1680551984700,5.15521705,1819.4,1818.8,1.09]
[1680551984996,4.3038,1818.9,1818.5,0.536431]
[1680551985296,4.3038,1818.9,1818.4,1.099]
[1680551985297,3.2078,1818.6,1818.4,1.099]
[1680551986797,3.2078,1818.8,1818.4,1.099]
[1680551987297,0.04974802,1818.7,1818.4,1.099]
[1680551988194,0.04974802,1818.7,1818.6,1.094]
[1680551988392,3.2078,1819.0,1818.6,1.094]
[1680551992095,3.2078,1819.0,1818.8,1.094]
[1680551999106,0.04903893,1818.9,1818.8,1.094]
[1680552004305,0.04903893,1818.9,1818.8,2.188]
[1680552004517,1.41818352,1819.3,1818.9,0.049]
[1680552004705,1.41818352,1819.3,1819.1,1.09]
[1680552004907,3.77556647,1819.4,1819.2,1.097]
[1680552005106,3.77556647,1819.4,1819.3,1.099]
[1680552005712,0.56776647,1819.5,1819.3,7.674]
[1680552005915,0.56776647,1819.6,1819.5,1.099]
[1680552006113,0.56776647,1819.6,1819.5,3.189]
[1680552006417,0.56776647,1819.6,1819.5,3.82176551]
[1680552006618,0.56776647,1819.7,1819.5,3.82176551]
[1680552006910,0.56776647,1819.7,1819.6,1.094]
[1680552007512,3.77556647,1819.8,1819.6,1.094]
[1680552007715,3.77556647,1819.8,1819.7,1.099]
[1680552010010,3.77556647,1819.8,1819.5,1.72676551]
[1680552010011,4.62598352,1819.8,1819.5,1.72676551]
[1680552010213,3.2078,1819.6,1819.5,0.63276551]
[1680552012010,4.87256647,1819.8,1819.5,0.63276551]
[1680552013922,3.77556647,1819.8,1819.5,1.72676551]
[1680552014918,3.2078,1819.8,1819.7,1.089]
[1680552015223,3.2078,1819.8,1819.7,1.70864989]
[1680552018025,3.2078,1819.8,1819.7,0.61964989]
[1680552018227,3.2078,1819.8,1819.6,1.089]
[1680552019929,1.096,1819.7,1819.3,1.64720329]
[1680552020125,3.2078,1819.5,1819.3,1.64720329]
[1680552020435,4.3038,1819.7,1819.3,1.64720329]
[1680552020840,3.2078,1819.5,1819.3,1.64720329]
[1680552022532,3.2078,1819.7,1819.4,1.089]
[1680552022733,4.87256647,1819.9,1819.4,1.089]
[1680552023842,3.2078,1819.7,1819.4,1.089]
[1680552024436,4.87256647,1819.9,1819.4,1.089]
[1680552025536,3.2078,1819.7,1819.4,1.089]
[1680552026249,4.87256647,1819.9,1819.4,1.089]
[1680552026745,3.2078,1819.7,1819.4,1.089]
[1680552030448,3.2078,1819.7,1819.5,0.53123392]
[1680552034143,4.87256647,1819.9,1819.5,0.53123392]
[1680552035450,3.77556647,1819.9,1819.6,1.099]
[1680552038552,3.2078,1819.9,1819.6,1.099]
[1680552038849,3.77556647,1819.9,1819.6,1.099]
[1680552041852,3.2078,1819.7,1819.5,0.53123392]
[1680552042047,4.87256647,1819.7,1819.5,0.53123392]
[1680552042252,4.87256647,1819.7,1819.3,1.099]
[1680552044254,0.56776647,1819.6,1819.3,1.099]
[1680552045252,0.56776647,1819.6,1819.4,0.49845235]
[1680552045753,0.56776647,1819.6,1819.3,1.099]
[1680552048356,1.66676647,1819.4,1819.1,0.55360451]
[1680552048555,4.87156647,1819.2,1818.8,1.43776183]
[1680552048751,4.3068,1819.0,1818.7,1.43776183]
[1680552048957,4.3068,1819.0,1818.6,2.53476183]
[1680552052864,3.2078,1818.8,1818.6,1.097]
[1680552055658,3.2078,1818.8,1818.6,2.097]
[1680552055960,1.099,1819.0,1818.6,2.097]
[1680552056264,0.13671109,1818.9,1818.6,2.097]
[1680552056658,0.13671109,1818.9,1818.6,1.097]
[1680552057258,0.13671109,1818.9,1818.7,1.099]
[1680552057453,3.2078,1819.1,1818.7,1.099]
[1680552057658,3.2078,1819.3,1819.0,1.097]
[1680552058953,3.2078,1819.3,1819.1,0.16405822]
[1680552062153,4.3068,1819.3,1819.1,0.16405822]
[1680552062361,4.3068,1819.3,1818.9,1.099]
[1680552062656,3.2078,1819.0,1818.9,1.099]
[1680552062857,3.2078,1819.0,1818.6,1.099]
[1680552063064,3.2078,1818.8,1818.6,1.099]
[1680552063465,3.2078,1818.8,1818.5,0.56286434]
[1680552063664,3.2078,1818.8,1818.4,5.21919035]
[1680552063860,0.16234355,1818.7,1818.4,5.21919035]
[1680552064463,0.16234355,1818.7,1818.5,3.2078]
[1680552064862,1.093,1818.9,1818.5,3.2078]
[1680552065168,3.2078,1819.0,1818.6,1.099]
[1680552065459,3.2078,1819.0,1818.6,2.099]
[1680552066767,3.2078,1819.0,1818.8,1.099]
[1680552067466,4.3038,1819.2,1818.8,1.099]
[1680552067662,3.2078,1819.4,1819.0,1.09]
[1680552068464,5.44238339,1819.6,1819.2,1.097]
[1680552068671,3.2078,1819.6,1819.2,1.097]
[1680552070372,3.2078,1819.4,1819.0,1.099]
[1680552072068,4.3048,1819.4,1818.9,1.20481497]
[1680552072372,4.29703893,1819.4,1818.9,1.20481497]
[1680552073872,4.3008,1819.6,1819.2,1.099]
[1680552075277,4.3008,1819.6,1819.3,0.29512529]
[1680552077872,3.2078,1819.6,1819.4,1.099]
[1680552079070,4.3068,1819.6,1819.3,0.29512529]
[1680552080777,6.25321705,1819.4,1818.5,1.98931328]
[1680552080979,4.3038,1818.8,1818.5,0.55155145]
[1680552081272,4.3038,1818.8,1818.4,3.12019035]
[1680552081473,4.3038,1818.8,1818.4,1.43776183]
[1680552081683,3.2078,1818.6,1818.3,2.53476183]
[1680552082080,3.2078,1818.6,1818.3,1.43776183]
[1680552085083,3.2078,1818.6,1818.2,3.53176183]
[1680552085982,3.2078,1818.6,1818.3,1.43776183]
[1680552086176,3.2078,1818.6,1818.2,3.53176183]
[1680552086378,3.2078,1818.6,1818.3,1.43776183]
[1680552087587,3.2078,1818.6,1818.2,2.53176183]
[1680552088293,0.25001038,1818.5,1818.2,2.53176183]
[1680552088786,3.2078,1818.6,1818.2,2.53176183]
[1680552089085,0.24997657,1818.5,1818.2,2.53176183]
[1680552089289,3.2078,1818.6,1818.2,2.53176183]
[1680552089482,0.24995882,1818.5,1818.2,2.53176183]
[1680552089985,3.2078,1818.6,1818.2,2.53176183]
[1680552090293,0.24993149,1818.5,1818.2,2.53176183]
[1680552090582,3.2078,1818.6,1818.2,2.53176183]
[1680552090779,0.24991416,1818.5,1818.2,2.53176183]
[1680552091088,3.2078,1818.5,1818.2,3.53176183]
[1680552091284,3.2078,1818.5,1818.2,2.53176183]
[1680552092183,3.2078,1818.5,1818.2,3.53176183]
[1680552092886,1.096,1818.7,1818.2,3.53176183]
[1680552093091,0.24983342,1818.4,1818.2,3.53176183]
[1680552093289,1.096,1818.7,1818.2,3.53176183]
[1680552093491,3.2078,1818.6,1818.2,3.53176183]
[1680552093691,3.45761585,1818.6,1818.2,3.53176183]
[1680552093889,3.2078,1818.6,1818.2,3.53176183]
[1680552094292,0.24979042,1818.5,1818.2,2.53176183]
[1680552094591,0.24979042,1818.5,1818.2,1.43776183]
[1680552094592,3.2078,1818.4,1818.2,1.43776183]
[1680552094794,0.24977231,1818.3,1818.2,1.43776183]
[1680552095092,3.2078,1818.4,1818.1,3.08452894]
[1680552095297,0.24975374,1818.3,1818.1,3.08452894]
[1680552095492,3.2078,1818.4,1818.1,3.08452894]
[1680552095791,0.2497361,1818.3,1818.1,3.08452894]
[1680552096293,3.2078,1818.4,1818.1,3.08452894]
[1680552096594,0.24971098,1818.3,1818.1,3.08452894]
[1680552096893,3.2078,1818.4,1818.1,3.08452894]
[1680552097096,0.24969338,1818.2,1818.1,3.08452894]
[1680552097296,3.2078,1818.4,1818.1,3.08452894]
[1680552097488,0.24967521,1818.3,1818.1,3.08452894]
[1680552097892,3.2078,1818.4,1818.1,3.08452894]
[1680552098092,0.24965788,1818.2,1818.1,3.08452894]
[1680552098297,3.2078,1818.4,1818.1,3.08452894]
[1680552098588,0.2496402,1818.3,1818.1,3.08452894]
[1680552098790,3.2078,1818.4,1818.1,3.08452894]
[1680552098997,0.24962255,1818.3,1818.1,3.08452894]
[1680552099494,3.2078,1818.4,1818.1,3.08452894]
[1680552099696,3.2078,1818.4,1818.1,1.43776183]
[1680552099889,0.249596,1818.3,1818.1,1.43776183]
[1680552100083,3.2078,1818.4,1818.1,1.43776183]
[1680552100286,0.2495766,1818.3,1818.1,1.43776183]
[1680552100595,3.2078,1818.4,1818.1,1.43776183]
[1680552100794,0.24956066,1818.3,1818.0,3.06876727]
[1680552100996,3.2078,1818.4,1818.0,3.06876727]
[1680552101386,0.24954298,1818.3,1818.0,1.63100544]
[1680552101989,1.34854298,1818.3,1818.0,0.54200544]
[1680552102190,1.34854298,1818.3,1817.9,7.37547554]
[1680552102496,1.099,1818.3,1817.9,7.91478221]
[1680552107100,3.2078,1818.2,1817.9,3.26922038]
[1680552108093,4.3008,1818.0,1817.9,0.53930667]
[1680552108296,4.80471119,1818.0,1817.4,1.43776183]
[1680552108488,4.80471119,1818.0,1817.3,4.3048]
[1680552108489,3.2078,1817.5,1817.3,4.20200457]
[1680552108698,3.2078,1817.5,1817.2,1.43776183]
[1680552109699,3.2078,1817.5,1817.1,5.73556183]
[1680552110692,3.2078,1817.5,1817.1,7.37194405]
[1680552110899,0.92061011,1817.4,1817.1,7.37194405]
[1680552111500,0.92061011,1817.4,1817.3,3.2078]
[1680552111902,3.2078,1817.5,1817.1,4.16414405]
[1680552112099,3.2078,1817.5,1817.1,2.72638222]
[1680552112898,3.2078,1817.5,1817.1,1.09]
[1680552113292,4.3068,1817.3,1816.9,1.66415299]
[1680552113505,4.3068,1817.3,1816.9,3.3432728]
[1680552113707,4.3068,1817.3,1816.9,1.11]
[1680552116897,1.099,1817.1,1816.8,5.43477928]
[1680552117201,4.3068,1816.9,1816.8,1e-08]
[1680552117402,4.3068,1816.9,1816.3,4.2968]
[1680552117707,1.096,1816.7,1816.3,5.94840661]
[1680552118206,1.096,1816.7,1816.3,6.49081547]
[1680552118605,4.3038,1816.7,1816.3,6.49081547]
[1680552120303,0.97737977,1816.6,1816.3,6.49081547]
[1680552120710,4.3038,1816.7,1816.3,6.49081547]
[1680552121010,0.97813738,1816.5,1816.3,6.49081547]
[1680552121207,4.3038,1816.7,1816.3,6.49081547]
[1680552121406,3.2078,1816.5,1816.3,3.28301547]
[1680552121604,3.2078,1816.5,1816.3,2.19401547]
[1680552121909,3.2078,1816.5,1816.1,1.097]
[1680552122608,0.97889507,1816.4,1816.1,1.097]
[1680552122814,2.07789507,1816.4,1816.1,1.64111644]
[1680552123104,1.096,1816.2,1815.8,5.58619796]
[1680552123310,3.2078,1816.1,1815.8,0.55179796]
[1680552123514,3.2078,1816.1,1815.7,8.9529]
[1680552123707,3.2078,1815.9,1815.7,1.63130436]
[1680552124116,4.3038,1816.2,1815.7,1.63130436]
[1680552124917,3.2078,1816.2,1815.9,1.09]
[1680552125209,3.2078,1816.0,1815.7,3.27743231]
[1680552125415,3.2078,1816.0,1815.7,1.089]
[1680552126115,1.093,1816.2,1815.7,1.089]
[1680552126116,4.3008,1816.2,1815.7,1.089]
[1680552126311,3.2078,1816.0,1815.7,1.089]
[1680552128425,3.2078,1816.0,1815.6,0.54553121]
[1680552128426,3.2078,1815.8,1815.6,3.30168827]
[1680552128712,4.3048,1815.8,1815.4,1.094]
[1680552130418,1.096,1815.5,1815.2,0.55221341]
[1680552130625,4.3038,1815.6,1815.2,1.09]
[1680552130922,4.3068,1815.8,1815.3,6.57]
[1680552131224,3.2078,1815.8,1815.5,1.094]
[1680552131421,4.3068,1816.0,1815.5,1.094]
[1680552134622,3.2078,1815.8,1815.5,1.094]
[1680552135415,0.98420125,1815.7,1815.5,1.094]
[1680552136626,0.98420125,1815.7,1815.2,1.6512494]
[1680552136627,3.2078,1815.6,1815.2,1.6512494]
[1680552138935,0.98420125,1815.7,1815.4,1.089]
[1680552139135,0.98420125,1815.7,1815.6,1.089]
[1680552139435,2.08020125,1815.7,1815.2,1.089]
[1680552139635,3.2078,1815.5,1815.2,1.089]
[1680552142134,3.2078,1815.5,1815.3,1.099]
[1680552144037,5.28800125,1815.7,1815.3,1.099]
[1680552144226,3.2078,1815.5,1815.3,1.099]
[1680552145036,5.28800125,1815.7,1815.3,1.099]
[1680552145343,0.98420125,1815.7,1815.6,1.099]
[1680552145531,3.2078,1816.0,1815.6,1.099]
[1680552145735,3.2078,1815.8,1815.7,1.094]
[1680552149451,3.2078,1816.0,1815.7,1.094]
[1680552150442,0.98268478,1815.9,1815.7,1.094]
[1680552153350,4.3008,1815.8,1815.3,7.04694842]
[1680552153653,3.2078,1815.8,1815.6,1.099]
[1680552153855,0.98268478,1815.9,1815.6,1.099]
[1680552154357,0.98268478,1815.9,1815.8,1.099]
[1680552156653,3.2078,1816.2,1815.8,1.65657224]
[1680552156949,3.2078,1816.2,1815.9,1.099]
[1680552157154,4.3068,1816.2,1815.8,1.099]
[1680552157355,4.3068,1816.2,1815.6,4.2078]
[1680552157356,3.2078,1816.0,1815.6,1.097]
[1680552157553,3.2078,1815.8,1815.6,1.097]
[1680552158642,0.98420125,1815.7,1815.6,1.097]
[1680552159057,3.2078,1815.8,1815.6,1.097]
[1680552159747,3.2078,1815.8,1815.3,2.22954842]
[1680552160052,3.2078,1815.8,1815.4,1.099]
[1680552163457,3.2078,1815.6,1815.4,1.099]
[1680552164357,4.3048,1815.6,1815.2,0.55178425]
[1680552164561,0.98571806,1815.5,1815.1,2.53676183]
[1680552164867,4.3048,1815.6,1815.1,2.53676183]
[1680552165357,0.98571806,1815.5,1815.1,2.53676183]
[1680552165760,4.3048,1815.6,1815.1,2.53676183]
[1680552166061,0.98571806,1815.5,1815.1,2.53676183]
[1680552166363,3.2078,1815.4,1815.1,2.53676183]
[1680552166561,3.2078,1815.4,1815.3,1.43776183]
[1680552167066,5.29327659,1815.4,1815.1,1.44185507]
[1680552167361,4.3038,1815.2,1814.7,0.55238852]
[1680552167549,1.096,1814.8,1814.4,2.81922608]
[1680552167751,1.096,1814.8,1814.4,1.089]
[1680552167752,3.2078,1814.7,1814.4,1.089]
[1680552168358,3.2078,1814.7,1814.4,0.53888169]
[1680552168565,3.2078,1814.7,1814.2,3.36472005]
[1680552169167,3.2078,1814.7,1814.3,1.097]
[1680552172067,4.3038,1814.7,1814.3,1.09]
[1680552173063,3.2078,1814.9,1814.6,1.089]
[1680552173865,3.2078,1814.7,1814.2,2.19343481]
[1680552174066,3.2078,1814.9,1814.0,3.3578]
[1680552174273,3.2078,1814.9,1814.1,1.0]
[1680552174470,1.093,1814.6,1814.1,2.09]
[1680552174768,3.2078,1814.5,1814.1,1.09]
[1680552175162,3.2078,1814.5,1814.0,5.54980256]
[1680552175370,3.2078,1814.3,1814.0,3.44100256]
[1680552175769,1.093,1814.8,1814.0,3.44100256]
[1680552175770,3.2078,1814.5,1814.2,1.097]
[1680552176167,0.99406646,1814.4,1814.2,1.097]
[1680552177863,6.646e-05,1814.4,1814.3,1.099]
[1680552178180,1.54403601,1815.4,1814.3,1.099]
[1680552178181,3.2078,1815.1,1814.3,7.674]
[1680552178363,4.3048,1814.9,1814.4,1.0]
[1680552178676,4.3048,1814.9,1814.2,3.2078]
[1680552178871,4.3048,1814.9,1814.4,1.094]
[1680552181167,1.097,1814.9,1814.4,4.3018]
[1680552181367,4.3038,1815.1,1814.6,1.099]
[1680552181767,3.2078,1815.1,1814.9,1.089]
[1680552182772,1.097,1815.3,1815.0,1.099]
[1680552182773,3.2078,1815.3,1815.0,1.099]
[1680552182986,3.2078,1815.5,1815.2,1.09]
[1680552183569,3.2078,1815.5,1815.2,4.2978]
[1680552183775,3.2078,1815.5,1815.3,1.0]
[1680552183979,3.2078,1815.7,1815.4,1.097]
[1680552184277,4.3088,1815.9,1815.4,4.3048]
[1680552184777,4.3088,1815.9,1815.5,1.0]
[1680552185083,3.2078,1815.7,1815.3,1.097]
[1680552185381,1.097,1815.8,1815.3,1.097]
[1680552186574,3.2078,1815.7,1815.3,1.097]
[1680552190677,3.2078,1815.7,1815.3,2.097]
[1680552191280,4.3008,1815.9,1815.5,1.097]
[1680552191485,4.3008,1815.9,1815.5,2.097]
[1680552191978,3.2078,1815.7,1815.5,1.097]
[1680552192181,3.2078,1815.7,1815.4,1.09]
[1680552192379,4.3038,1815.9,1815.4,1.09]
[1680552194471,4.3038,1815.9,1815.4,4.2978]
[1680552195878,3.2078,1815.9,1815.6,1.099]
[1680552201988,4.3038,1815.9,1815.5,1.097]
[1680552202691,3.2078,1815.7,1815.5,1.097]
[1680552202883,4.3008,1815.7,1815.3,1.099]
[1680552203284,1.0,1816.2,1815.2,2.19203806]
[1680552203285,3.2078,1815.5,1815.2,2.19203806]
[1680552203484,3.2078,1815.5,1815.1,1.099]
[1680552205393,3.2078,1815.3,1815.1,1.099]
[1680552207287,3.2078,1815.5,1815.1,1.099]
[1680552209904,3.2078,1815.3,1815.1,1.099]
[1680552210399,3.2078,1815.3,1814.9,5.3018]
[1680552210601,3.2078,1815.3,1814.9,4.3018]
[1680552211804,3.2078,1815.3,1814.9,9.7778]
[1680552211999,4.3038,1815.5,1815.0,1.099]
[1680552212403,3.2078,1815.7,1815.2,1.094]
[1680552212703,1.093,1815.6,1815.2,7.57]
[1680552213501,1.093,1815.6,1815.2,6.57]
[1680552215107,3.2078,1815.7,1815.4,1.09]
[1680552215708,3.2078,1815.7,1815.4,2.09]
[1680552216210,1.099,1815.8,1815.4,2.09]
[1680552216610,1.099,1815.8,1815.4,1.09]
[1680552216909,3.2078,1815.9,1815.6,1.099]
[1680552219207,3.2078,1815.7,1815.6,1.099]
[1680552222014,3.2078,1815.7,1815.5,1.09]
[1680552225214,4.3048,1815.7,1815.3,1.089]
[1680552225411,3.2078,1815.4,1815.3,1.089]
[1680552226215,1.097,1815.7,1815.3,1.089]
[1680552227209,3.2078,1815.6,1815.3,1.089]
[1680552227409,1.099,1815.5,1815.1,2.82922608]
[1680552227608,1.099,1815.5,1815.1,1.099]
[1680552227815,3.2078,1815.4,1815.1,1.099]
[1680552228720,1.099,1815.5,1815.1,1.099]
[1680552228721,3.2078,1815.2,1815.1,1.099]
[1680552229725,4.3068,1815.2,1814.9,1.73022608]
[1680552229927,1.099,1815.5,1814.7,0.55349097]
[1680552229928,4.3068,1815.0,1814.7,0.55349097]
[1680552230221,4.3068,1815.0,1814.6,1.097]
[1680552230613,4.3068,1815.0,1814.6,2.097]
[1680552230817,4.3068,1815.0,1814.6,4.38938868]
[1680552231017,4.3068,1815.2,1814.8,1.09]
[1680552231623,3.2078,1815.0,1814.8,1.09]
[1680552232924,3.2078,1815.3,1814.9,1.099]
[1680552233725,3.2078,1815.1,1814.7,1.098]
[1680552241325,1.099,1815.0,1814.6,1.6511626]
[1680552241521,1.097,1814.8,1814.4,4.3178]
[1680552242725,1.099,1814.6,1814.3,1.66371792]
[1680552242920,1.099,1814.6,1814.1,1.097]
[1680552243330,3.2078,1814.5,1814.1,1.097]
[1680552244226,1.099,1814.4,1814.0,5.01783541]
[1680552244920,1.099,1814.4,1814.0,6.65879664]
[1680552245630,3.2078,1814.3,1814.0,6.65879664]
[1680552245830,3.2078,1814.1,1814.0,2.35399664]
[1680552246217,3.2100786,1814.1,1814.0,0.71303541]
[1680552246422,3.2100786,1814.1,1814.0,0.15]
[1680552249329,4.3070786,1814.1,1814.0,0.15]
[1680552250726,3.2100786,1814.1,1814.0,0.15]
[1680552252330,0.0022786,1814.1,1814.0,1.249]
[1680552252536,3.2078,1814.3,1814.1,0.00137147]
[1680552252726,4.3068,1814.3,1814.1,0.00137147]
[1680552253026,1.099,1814.3,1814.1,0.00137147]
[1680552253231,4.3068,1814.3,1814.1,0.00137147]
[1680552255134,1.093,1814.2,1814.1,0.00137147]
[1680552255929,4.3008,1814.3,1814.1,0.00137147]
[1680552256325,1.099,1814.5,1814.1,1.09037147]
[1680552256526,4.3068,1814.5,1814.1,1.09037147]
[1680552256932,2.189,1814.2,1814.1,0.00137147]
[1680552257333,2.189,1814.2,1813.3,1.0]
[1680552257538,1.093,1813.7,1813.4,3.2078]
[1680552257934,0.00379933,1813.6,1813.4,3.2078]
[1680552258438,1.093,1813.7,1813.3,1.09]
[1680552259237,4.3068,1813.9,1813.5,1.097]
[1680552260339,0.00227934,1813.8,1813.5,1.097]
[1680552260741,4.3068,1813.9,1813.5,1.097]
[1680552265445,3.2078,1814.1,1813.8,1.099]
[1680552265639,3.2078,1814.1,1813.8,6.575]
[1680552265840,3.2078,1814.3,1814.0,1.099]
[1680552266140,3.2078,1814.3,1814.2,1.094]
[1680552266331,4.3048,1814.9,1814.2,6.57]
[1680552266538,4.3048,1814.9,1814.6,1.094]
[1680552266539,3.2078,1814.9,1814.6,1.094]
[1680552267934,3.2078,1814.9,1814.6,6.57]
[1680552269840,4.3038,1815.1,1814.6,6.57]
[1680552270342,4.3038,1815.1,1814.6,1.63947444]
[1680552270643,3.2078,1814.9,1814.6,1.63947444]
[1680552271439,4.3038,1814.9,1814.6,0.54547444]
[1680552271644,3.2078,1814.7,1814.4,1.089]
[1680552272046,3.2078,1814.7,1814.4,0.54120483]
[1680552272247,3.2078,1814.7,1814.3,1.097]
[1680552273046,3.2078,1814.9,1814.5,1.09]
[1680552274943,3.2078,1814.9,1814.5,1.63916344]
[1680552275646,1.096,1815.0,1814.5,10.32296344]
[1680552276247,1.096,1815.0,1814.6,1.0]
[1680552276554,3.2078,1815.1,1814.7,1.09]
[1680552276745,3.2078,1815.1,1814.7,6.566]
[1680552278552,3.2078,1815.1,1814.8,6.476]
[1680552279454,3.2078,1815.1,1814.8,1.0]
[1680552279651,3.2078,1815.1,1814.7,1.09]
[1680552284953,3.2078,1815.1,1814.7,6.566]
[1680552285347,3.2078,1815.1,1814.7,9.7738]
[1680552289156,3.2078,1815.1,1814.8,7.57]
[1680552289448,3.2078,1815.1,1814.9,1.0]
[1680552291545,3.2078,1815.1,1814.8,7.57]
[1680552293861,3.2078,1815.1,1814.8,6.57]
[1680552294755,3.2078,1815.1,1814.8,7.57]
[1680552295758,1.096,1815.0,1814.6,1.66944422]
[1680552295955,1.096,1815.0,1814.5,4.85396344]
[1680552296454,3.2078,1815.1,1814.7,6.57]
[1680552297353,3.2078,1815.1,1814.7,1.094]
[1680552299357,3.2078,1814.9,1814.5,3.30935405]
[1680552299763,1.099,1815.0,1814.5,3.30935405]
[1680552300151,1.099,1815.0,1814.6,1.0]
[1680552300355,3.2078,1815.1,1814.7,1.094]
[1680552301462,3.2078,1815.1,1814.7,4.3018]
[1680552302167,3.2078,1815.1,1814.8,1.099]
[1680552302966,3.2078,1815.1,1815.0,1.089]
[1680552303154,3.2078,1815.3,1815.0,1.089]
[1680552303461,3.2078,1815.3,1814.7,3.2078]
[1680552303665,3.2078,1815.1,1814.7,1.094]
[1680552305363,1.096,1814.8,1814.5,2.21035405]
[1680552305567,1.096,1814.8,1814.4,1.099]
[1680552307466,3.2078,1814.5,1814.4,0.54595422]
[1680552307669,4.3008,1814.5,1814.0,1.64686938]
[1680552307857,4.3008,1814.5,1813.9,2.089]
[1680552308166,3.2078,1814.3,1813.9,2.089]
[1680552308865,3.2078,1814.3,1813.9,2.7095856]
[1680552309060,3.2078,1814.3,1813.9,1.089]
[1680552309973,1.099,1814.2,1813.8,3.7613035]
[1680552310160,1.099,1814.2,1813.8,5.42509572]
[1680552311183,3.2078,1814.3,1813.9,1.09]
[1680552315371,1.099,1814.0,1813.5,1.73022608]
[1680552315574,1.099,1814.0,1813.5,1.65824844]
[1680552315777,1.099,1814.0,1813.4,11.76952608]
[1680552316072,3.2078,1813.9,1813.4,10.76952608]
[1680552316281,3.2078,1813.9,1813.4,9.0393]
[1680552316579,0.00227934,1813.8,1813.4,9.0393]
[1680552316967,3.2078,1813.9,1813.4,9.0393]